Workbook

Sheet Vista Principal
C2: Calculadora de Seguros PP - Scotiabank
B7: 1) Establecer los datos del préstamos
B9: Producto | C9: Persona Natural
B10: Tipo de Seguro | C10: Seguro de Desgravamen con Devolución
B11: Tarifa | C11: TARIFA TITULAR
B12: Monto inicial | C12: 100000
B13: Seguro Desempleo
B14: Monto adicional desempleo | C14: =C13*C12 -> 0
B15: Prima de Seguro de Desgravamen/Vida | C15: =IF(C10="Seguro de vida",'Proceso Prima de Seguro'!D13, IF(AND(C10="Sin Seguro (Solo LD Garantía Liquida)",C9="Préstamos Personales (LD Garantía Liquida)"),0%, 'Proceso Prima de Seguro'!H16)) -> 0.05078299811
B16: Monto adicional del Seguro | C16: =+C15*C12 -> 5078.299811
B17: MAF final (MAF inicial+seguro) | C17: =C12+C14+C16 -> 105078.2998
B18: Empleado | C18: =IF(C9="Préstamos Personales (LD Y PA) (Empleados)","SI","NO") -> NO
B19: Moneda | C19: Soles
B20: Plazo Remanente | C20: 36
B21: Fecha de Desembolso | C21: =TODAY() -> 2022-08-12
B22: Fecha de 1er Pago | C22: 2022-09-02
B23: Cuota Julio | C23: 1
B24: Cuota Diciembre | C24: 1
B25: TEA | C25: 0.2
B26: TEA TOTAL | C26: =+C25 -> 0.2
B27: Monto del Bien | C27: 0
B28: Seguro del Bien | C28: 0
B29: Portes
B30: Cuota | C30: =(C17+(C28*C27+C29)*P34)/O34 -> 3814.125952
B31: 2) Calcular TCEA presionando el botón
B32: TCEA | C32: 0.245501061
U33: =C17-U34-C14-C16 -> 194.77
O34: =SUM(O36:O395) -> 27.54977186 | P34: =SUM(P36:P395) -> 27.54977186 | U34: =SUM(U36:U395) -> 99805.23
B35: N° Cuota | C35: Fecha de pago | D35: Día | E35: Fecha de pago | F35: Días | G35: Dias Acumulados | H35: Saldo Inicial | I35: Amortización | J35: Interés | K35: Seguro del Bien | L35: Portes | M35: Cuota Constante | N35: Saldo Final | O35: Factor Cronograma | P35: Factor Cronograma 2 | R35: Vector i,1 Cuota | S35: Vector i,2 Días Acum | T35: Vector i,3 Factor | U35: Vector i,4 Calculo VA
B36: 1 | C36: =C22 -> 2022-09-02 | D36: =IF(B36<=$C$20,WEEKDAY(C36,2),"") -> 5 | E36: =IF(D36=7,C36+1,C36) -> 2022-09-02 | F36: =E36-C21 -> 21 | G36: =F36 -> 21 | H36: =C17 -> 105078.2998 | I36: =IF(B36>C$20,"",M36-L36-K36-J36) -> 2690.609719 | J36: =IF(B36>C$20,"",((1+C$25)^(F36/360)-1)*H36) -> 1123.516233 | K36: =IF(B36>C$20,"",C$27*C$28) -> 0 | L36: =IF(B36>C$20,"",C$29) -> 0 | M36: =IF(B36>C$20,"",IF(B36=C$20,H36+J36+K36+L36,IF(AND(C$23=2,MONTH(E36)=7),2*C$30,IF(AND(C$24=2,MONTH(E36)=12),2*C$30,C$30)))) -> 3814.125952 | N36: =IF(B36>C$20,"",H36-I36) -> 102387.6901 | O36: =IFERROR(IF(AND(MONTH(E36)=7,C$23=2),2/(1+C$26)^(G36/360),IF(AND(MONTH(E36)=12,C$24=2),2/(1+C$26)^(G36/360),1/(1+C$26)^(G36/360))),"") -> 0.989420932 | P36: =IFERROR(1/(1+C$26)^(G36/360),"") -> 0.989420932 | R36: =IFERROR(I36+J36+K36+L36,"") -> 3814.125952 | S36: =G36 -> 21 | T36: =IFERROR((1+C$32)^(S36/360),"") -> 1.012888731 | U36: =IFERROR(ROUND(R36/T36,2),"") -> 3765.59
B37: 2 | C37: =IF(B37>$C$20,"",EDATE(C36,1)) -> 2022-10-02 | D37: 7 | E37: =IF(D37=7,C37+1,C37) -> 2022-10-03 | F37: =IF(B37>C$20,"",E37-E36) -> 31 | G37: =IFERROR(F37+G36,"") -> 52 | H37: =IF(B37>C$20,"",N36) -> 102387.6901 | I37: =IF(B37>C$20,"",M37-L37-K37-J37) -> 2193.963318 | J37: 1620.162634 | K37: 0 | L37: 0 | M37: =IF(B37>C$20,"",IF(B37=C$20,H37+J37+K37+L37,IF(AND(C$23=2,MONTH(E37)=7),2*C$30,IF(AND(C$24=2,MONTH(E37)=12),2*C$30,C$30)))) -> 3814.125952 | N37: 100193.7268 | O37: 0.9740084148 | P37: 0.9740084148 | R37: =IFERROR(I37+J37+K37+L37,"") -> 3814.125952 | S37: 52 | T37: 1.032219183 | U37: 3695.07
B38: 3 | C38: 2022-11-02 | D38: 3 | E38: 2022-11-02 | F38: 30 | G38: 82 | H38: 100193.7268 | I38: 2280.213047 | J38: 1533.912904 | K38: 0 | L38: 0 | M38: 3814.125952 | N38: 97913.51373 | O38: 0.9593217074 | P38: 0.9593217074 | R38: 3814.125952 | S38: 82 | T38: 1.051277253 | U38: 3628.09
B39: 4 | C39: 2022-12-02 | D39: 5 | E39: 2022-12-02 | F39: 30 | G39: 112 | H39: 97913.51373 | I39: 2315.121902 | J39: 1499.00405 | K39: 0 | L39: 0 | M39: 3814.125952 | N39: 95598.39183 | O39: 0.9448564554 | P39: 0.9448564554 | R39: 3814.125952 | S39: 112 | T39: 1.070687197 | U39: 3562.32
B40: 5 | C40: 2023-01-02 | D40: 1 | E40: 2023-01-02 | F40: 31 | G40: 143 | H40: 95598.39183 | I40: 2301.395836 | J40: 1512.730116 | K40: 0 | L40: 0 | M40: 3814.125952 | N40: 93296.99599 | O40: 0.9301381328 | P40: 0.9301381328 | R40: 3814.125952 | S40: 143 | T40: 1.091120703 | U40: 3495.6
B41: 6 | C41: 2023-02-02 | D41: 4 | E41: 2023-02-02 | F41: 31 | G41: 174 | H41: 93296.99599 | I41: 2337.81267 | J41: 1476.313281 | K41: 0 | L41: 0 | M41: 3814.125952 | N41: 90959.18332 | O41: 0.9156490822 | P41: 0.9156490822 | R41: 3814.125952 | S41: 174 | T41: 1.111944171 | U41: 3430.14
B42: 7 | C42: 2023-03-02 | D42: 4 | E42: 2023-03-02 | F42: 28 | G42: 202 | H42: 90959.18332 | I42: 2515.084489 | J42: 1299.041462 | K42: 0 | L42: 0 | M42: 3814.125952 | N42: 88444.09883 | O42: 0.9027562899 | P42: 0.9027562899 | R42: 3814.125952 | S42: 202 | T42: 1.131093834 | U42: 3372.07
B43: 8 | C43: 2023-04-02 | D43: 7 | E43: 2023-04-03 | F43: 32 | G43: 234 | H43: 88444.09883 | I43: 2369.091244 | J43: 1445.034708 | K43: 0 | L43: 0 | M43: 3814.125952 | N43: 86075.00759 | O43: 0.8882438108 | P43: 0.8882438108 | R43: 3814.125952 | S43: 234 | T43: 1.153383319 | U43: 3306.9
B44: 9 | C44: 2023-05-02 | D44: 2 | E44: 2023-05-02 | F44: 29 | G44: 263 | H44: 86075.00759 | I44: 2540.611917 | J44: 1273.514034 | K44: 0 | L44: 0 | M44: 3814.125952 | N44: 83534.39567 | O44: 0.8752934948 | P44: 0.8752934948 | R44: 3814.125952 | S44: 263 | T44: 1.173962335 | U44: 3248.93
B45: 10 | C45: 2023-06-02 | D45: 5 | E45: 2023-06-02 | F45: 31 | G45: 294 | H45: 83534.39567 | I45: 2492.294134 | J45: 1321.831818 | K45: 0 | L45: 0 | M45: 3814.125952 | N45: 81042.10153 | O45: 0.8616587761 | P45: 0.8616587761 | R45: 3814.125952 | S45: 294 | T45: 1.196366792 | U45: 3188.09
B46: 11 | C46: 2023-07-02 | D46: 7 | E46: 2023-07-03 | F46: 31 | G46: 325 | H46: 81042.10153 | I46: 2531.731705 | J46: 1282.394246 | K46: 0 | L46: 0 | M46: 3814.125952 | N46: 78510.36983 | O46: 0.8482364497 | P46: 0.8482364497 | R46: 3814.125952 | S46: 325 | T46: 1.219198828 | U46: 3128.39
B47: 12 | C47: 2023-08-02 | D47: 3 | E47: 2023-08-02 | F47: 30 | G47: 355 | H47: 78510.36983 | I47: 2612.173761 | J47: 1201.952191 | K47: 0 | L47: 0 | M47: 3814.125952 | N47: 75898.19607 | O47: 0.8354462106 | P47: 0.8354462106 | R47: 3814.125952 | S47: 355 | T47: 1.241709141 | U47: 3071.67
B48: 13 | C48: 2023-09-02 | D48: 6 | E48: 2023-09-02 | F48: 31 | G48: 386 | H48: 75898.19607 | I48: 2613.127852 | J48: 1200.9981 | K48: 0 | L48: 0 | M48: 3814.125952 | N48: 73285.06822 | O48: 0.8224322054 | P48: 0.8224322054 | R48: 3814.125952 | S48: 386 | T48: 1.265406511 | U48: 3014.15
B49: 14 | C49: 2023-10-02 | D49: 1 | E49: 2023-10-02 | F49: 30 | G49: 416 | H49: 73285.06822 | I49: 2692.170362 | J49: 1121.95559 | K49: 0 | L49: 0 | M49: 3814.125952 | N49: 70592.89785 | O49: 0.8100310588 | P49: 0.8100310588 | R49: 3814.125952 | S49: 416 | T49: 1.288769966 | U49: 2959.51
B50: 15 | C50: 2023-11-02 | D50: 4 | E50: 2023-11-02 | F50: 31 | G50: 447 | H50: 70592.89785 | I50: 2697.077846 | J50: 1117.048106 | K50: 0 | L50: 0 | M50: 3814.125952 | N50: 67895.82001 | O50: 0.7974129533 | P50: 0.7974129533 | R50: 3814.125952 | S50: 447 | T50: 1.313365467 | U50: 2904.09
B51: 16 | C51: 2023-12-02 | D51: 6 | E51: 2023-12-02 | F51: 30 | G51: 477 | H51: 67895.82001 | I51: 2774.676898 | J51: 1039.449053 | K51: 0 | L51: 0 | M51: 3814.125952 | N51: 65121.14311 | O51: 0.7853890627 | P51: 0.7853890627 | R51: 3814.125952 | S51: 477 | T51: 1.337614398 | U51: 2851.44
B52: 17 | C52: 2024-01-02 | D52: 2 | E52: 2024-01-02 | F52: 31 | G52: 508 | H52: 65121.14311 | I52: 2783.661814 | J52: 1030.464137 | K52: 0 | L52: 0 | M52: 3814.125952 | N52: 62337.4813 | O52: 0.7731548132 | P52: 0.7731548132 | R52: 3814.125952 | S52: 508 | T52: 1.36314207 | U52: 2798.04
B53: 18 | C53: 2024-02-02 | D53: 5 | E53: 2024-02-02 | F53: 31 | G53: 539 | H53: 62337.4813 | I53: 2827.70993 | J53: 986.4160212 | K53: 0 | L53: 0 | M53: 3814.125952 | N53: 59509.77137 | O53: 0.7611111405 | P53: 0.7611111405 | R53: 3814.125952 | S53: 539 | T53: 1.389156924 | U53: 2745.64
B54: 19 | C54: 2024-03-02 | D54: 6 | E54: 2024-03-02 | F54: 29 | G54: 568 | H54: 59509.77137 | I54: 2933.655172 | J54: 880.4707793 | K54: 0 | L54: 0 | M54: 3814.125952 | N54: 56576.11619 | O54: 0.7500143789 | P54: 0.7500143789 | R54: 3814.125952 | S54: 568 | T54: 1.413942684 | U54: 2697.51
B55: 20 | C55: 2024-04-02 | D55: 2 | E55: 2024-04-02 | F55: 31 | G55: 599 | H55: 56576.11619 | I55: 2918.876637 | J55: 895.249315 | K55: 0 | L55: 0 | M55: 3814.125952 | N55: 53657.23956 | O55: 0.738331172 | P55: 0.738331172 | R55: 3814.125952 | S55: 599 | T55: 1.440927041 | U55: 2646.99
B56: 21 | C56: 2024-05-02 | D56: 4 | E56: 2024-05-02 | F56: 30 | G56: 629 | H56: 53657.23956 | I56: 2992.662026 | J56: 821.4639261 | K56: 0 | L56: 0 | M56: 3814.125952 | N56: 50664.57753 | O56: 0.7271981533 | P56: 0.7271981533 | R56: 3814.125952 | S56: 629 | T56: 1.467531167 | U56: 2599.01
B57: 22 | C57: 2024-06-02 | D57: 7 | E57: 2024-06-03 | F57: 32 | G57: 661 | H57: 50664.57753 | I57: 2986.348022 | J57: 827.7779295 | K57: 0 | L57: 0 | M57: 3814.125952 | N57: 47678.22951 | O57: 0.7155079019 | P57: 0.7155079019 | R57: 3814.125952 | S57: 661 | T57: 1.496450531 | U57: 2548.78
B58: 23 | C58: 2024-07-02 | D58: 2 | E58: 2024-07-02 | F58: 29 | G58: 690 | H58: 47678.22951 | I58: 3108.707548 | J58: 705.4184032 | K58: 0 | L58: 0 | M58: 3814.125952 | N58: 44569.52196 | O58: 0.7050760212 | P58: 0.7050760212 | R58: 3814.125952 | S58: 690 | T58: 1.523150656 | U58: 2504.1
B59: 24 | C59: 2024-08-02 | D59: 5 | E59: 2024-08-02 | F59: 31 | G59: 721 | H59: 44569.52196 | I59: 3108.866618 | J59: 705.2593336 | K59: 0 | L59: 0 | M59: 3814.125952 | N59: 41460.65534 | O59: 0.694092833 | P59: 0.694092833 | R59: 3814.125952 | S59: 721 | T59: 1.55221919 | U59: 2457.21
B60: 25 | C60: 2024-09-02 | D60: 1 | E60: 2024-09-02 | F60: 31 | G60: 752 | H60: 41460.65534 | I60: 3158.060711 | J60: 656.0652408 | K60: 0 | L60: 0 | M60: 3814.125952 | N60: 38302.59463 | O60: 0.6832807333 | P60: 0.6832807333 | R60: 3814.125952 | S60: 752 | T60: 1.581842483 | U60: 2411.19
B61: 26 | C61: 2024-10-02 | D61: 3 | E61: 2024-10-02 | F61: 30 | G61: 782 | H61: 38302.59463 | I61: 3227.733509 | J61: 586.3924426 | K61: 0 | L61: 0 | M61: 3814.125952 | N61: 35074.86112 | O61: 0.6729777995 | P61: 0.6729777995 | R61: 3814.125952 | S61: 782 | T61: 1.611048359 | U61: 2367.48
B62: 27 | C62: 2024-11-02 | D62: 6 | E62: 2024-11-02 | F62: 31 | G62: 813 | H62: 35074.86112 | I62: 3259.10826 | J62: 555.0176913 | K62: 0 | L62: 0 | M62: 3814.125952 | N62: 31815.75286 | O62: 0.6624946152 | P62: 0.6624946152 | R62: 3814.125952 | S62: 813 | T62: 1.641794375 | U62: 2323.14
B63: 28 | C63: 2024-12-02 | D63: 1 | E63: 2024-12-02 | F63: 30 | G63: 843 | H63: 31815.75286 | I63: 3327.043622 | J63: 487.0823299 | K63: 0 | L63: 0 | M63: 3814.125952 | N63: 28488.70924 | O63: 0.6525051075 | P63: 0.6525051075 | R63: 3814.125952 | S63: 843 | T63: 1.672107155 | U63: 2281.03
B64: 29 | C64: 2025-01-02 | D64: 4 | E64: 2025-01-02 | F64: 31 | G64: 874 | H64: 28488.70924 | I64: 3363.32623 | J64: 450.7997217 | K64: 0 | L64: 0 | M64: 3814.125952 | N64: 25125.38301 | O64: 0.6423408328 | P64: 0.6423408328 | R64: 3814.125952 | S64: 874 | T64: 1.704018446 | U64: 2238.31
B65: 30 | C65: 2025-02-02 | D65: 7 | E65: 2025-02-03 | F65: 32 | G65: 906 | H65: 25125.38301 | I65: 3403.617495 | J65: 410.5084566 | K65: 0 | L65: 0 | M65: 3814.125952 | N65: 21721.76552 | O65: 0.6320147259 | P65: 0.6320147259 | R65: 3814.125952 | S65: 906 | T65: 1.73759806 | U65: 2195.06
B66: 31 | C66: 2025-03-02 | D66: 7 | E66: 2025-03-03 | F66: 28 | G66: 934 | H66: 21721.76552 | I66: 3503.904674 | J66: 310.2212774 | K66: 0 | L66: 0 | M66: 3814.125952 | N66: 18217.86084 | O66: 0.6231156458 | P66: 0.6231156458 | R66: 3814.125952 | S66: 934 | T66: 1.767522599 | U66: 2157.89
B67: 32 | C67: 2025-04-02 | D67: 3 | E67: 2025-04-02 | F67: 30 | G67: 964 | H67: 18217.86084 | I67: 3535.220149 | J67: 278.9058031 | K67: 0 | L67: 0 | M67: 3814.125952 | N67: 14682.64069 | O67: 0.6137199188 | P67: 0.6137199188 | R67: 3814.125952 | S67: 964 | T67: 1.800156725 | U67: 2118.77
B68: 33 | C68: 2025-05-02 | D68: 5 | E68: 2025-05-02 | F68: 30 | G68: 994 | H68: 14682.64069 | I68: 3589.342497 | J68: 224.7834546 | K68: 0 | L68: 0 | M68: 3814.125952 | N68: 11093.2982 | O68: 0.6044658665 | P68: 0.6044658665 | R68: 3814.125952 | S68: 994 | T68: 1.83339338 | U68: 2080.36
B69: 34 | C69: 2025-06-02 | D69: 1 | E69: 2025-06-02 | F69: 31 | G69: 1025 | H69: 11093.2982 | I69: 3638.587787 | J69: 175.5381649 | K69: 0 | L69: 0 | M69: 3814.125952 | N69: 7454.710409 | O69: 0.5950499139 | P69: 0.5950499139 | R69: 3814.125952 | S69: 1025 | T69: 1.868382735 | U69: 2041.41
B70: 35 | C70: 2025-07-02 | D70: 3 | E70: 2025-07-02 | F70: 30 | G70: 1055 | H70: 7454.710409 | I70: 3699.998283 | J70: 114.1276691 | K70: 0 | L70: 0 | M70: 3814.125952 | N70: 3754.712127 | O70: 0.5860773795 | P70: 0.5860773795 | R70: 3814.125952 | S70: 1055 | T70: 1.902879061 | U70: 2004.4
B71: 36 | C71: 2025-08-02 | D71: 6 | E71: 2025-08-02 | F71: 31 | G71: 1086 | H71: 3754.712127 | I71: 3754.712127 | J71: 59.41382487 | K71: 0 | L71: 0 | M71: 3814.125952 | N71: 0 | O71: 0.5769478701 | P71: 0.5769478701 | R71: 3814.125952 | S71: 1086 | T71: 1.939194514 | U71: 1966.86
B72: 37
B73: 38
B74: 39
B75: 40
B76: 41
B77: 42
B78: 43
B79: 44
B80: 45
B81: 46
B82: 47
B83: 48
B84: 49
B85: 50
B86: 51
B87: 52
B88: 53
B89: 54
B90: 55
B91: 56
B92: 57
B93: 58
B94: 59
B95: 60
B96: 61
B97: 62
B98: 63
B99: 64
B100: 65 | D100: =IF(B100<=$C$20,WEEKDAY(C100,2),"") ->  | J100: =IF(B100>C$20,"",((1+C$25)^(F100/360)-1)*H100) ->  | K100: =IF(B100>C$20,"",C$27*C$28) ->  | L100: =IF(B100>C$20,"",C$29) ->  | N100: =IF(B100>C$20,"",H100-I100) ->  | O100: =IFERROR(IF(AND(MONTH(E100)=7,C$23=2),2/(1+C$26)^(G100/360),IF(AND(MONTH(E100)=12,C$24=2),2/(1+C$26)^(G100/360),1/(1+C$26)^(G100/360))),"") ->  | P100: =IFERROR(1/(1+C$26)^(G100/360),"") ->  | S100: =G100 ->  | T100: =IFERROR((1+C$32)^(S100/360),"") ->  | U100: =IFERROR(ROUND(R100/T100,2),"") -> 
B101: 66 | C101: =IF(B101>$C$20,"",EDATE(C100,1)) ->  | E101: =IF(D101=7,C101+1,C101) ->  | F101: =IF(B101>C$20,"",E101-E100) ->  | G101: =IFERROR(F101+G100,"") ->  | H101: =IF(B101>C$20,"",N100) ->  | I101: =IF(B101>C$20,"",M101-L101-K101-J101) ->  | M101: =IF(B101>C$20,"",IF(B101=C$20,H101+J101+K101+L101,IF(AND(C$23=2,MONTH(E101)=7),2*C$30,IF(AND(C$24=2,MONTH(E101)=12),2*C$30,C$30)))) ->  | R101: =IFERROR(I101+J101+K101+L101,"") -> 
B102: 67
B103: 68
B104: 69
B105: 70
B106: 71
B107: 72
B108: 73
B109: 74
B110: 75
B111: 76
B112: 77
B113: 78
B114: 79
B115: 80
B116: 81
B117: 82
B118: 83
B119: 84
B120: 85
B121: 86
B122: 87
B123: 88
B124: 89
B125: 90
B126: 91
B127: 92
B128: 93
B129: 94
B130: 95
B131: 96
B132: 97
B133: 98
B134: 99
B135: 100
B136: 101
B137: 102
B138: 103
B139: 104
B140: 105
B141: 106
B142: 107
B143: 108
B144: 109
B145: 110
B146: 111
B147: 112
B148: 113
B149: 114
B150: 115
B151: 116
B152: 117
B153: 118
B154: 119
B155: 120
B156: 121
B157: 122
B158: 123
B159: 124
B160: 125
B161: 126
B162: 127
B163: 128
B164: 129 | D164: =IF(B164<=$C$20,WEEKDAY(C164,2),"") ->  | J164: =IF(B164>C$20,"",((1+C$25)^(F164/360)-1)*H164) ->  | K164: =IF(B164>C$20,"",C$27*C$28) ->  | L164: =IF(B164>C$20,"",C$29) ->  | N164: =IF(B164>C$20,"",H164-I164) ->  | O164: =IFERROR(IF(AND(MONTH(E164)=7,C$23=2),2/(1+C$26)^(G164/360),IF(AND(MONTH(E164)=12,C$24=2),2/(1+C$26)^(G164/360),1/(1+C$26)^(G164/360))),"") ->  | P164: =IFERROR(1/(1+C$26)^(G164/360),"") ->  | S164: =G164 ->  | T164: =IFERROR((1+C$32)^(S164/360),"") ->  | U164: =IFERROR(ROUND(R164/T164,2),"") -> 
B165: 130 | C165: =IF(B165>$C$20,"",EDATE(C164,1)) ->  | E165: =IF(D165=7,C165+1,C165) ->  | F165: =IF(B165>C$20,"",E165-E164) ->  | G165: =IFERROR(F165+G164,"") ->  | H165: =IF(B165>C$20,"",N164) ->  | I165: =IF(B165>C$20,"",M165-L165-K165-J165) ->  | M165: =IF(B165>C$20,"",IF(B165=C$20,H165+J165+K165+L165,IF(AND(C$23=2,MONTH(E165)=7),2*C$30,IF(AND(C$24=2,MONTH(E165)=12),2*C$30,C$30)))) ->  | R165: =IFERROR(I165+J165+K165+L165,"") -> 
B166: 131
B167: 132
B168: 133
B169: 134
B170: 135
B171: 136
B172: 137
B173: 138
B174: 139
B175: 140
B176: 141
B177: 142
B178: 143
B179: 144
B180: 145
B181: 146
B182: 147
B183: 148
B184: 149
B185: 150
B186: 151
B187: 152
B188: 153
B189: 154
B190: 155
B191: 156
B192: 157
B193: 158
B194: 159
B195: 160
B196: 161
B197: 162
B198: 163
B199: 164
B200: 165
B201: 166
B202: 167
B203: 168
B204: 169
B205: 170
B206: 171
... 189 more rows

Sheet Proceso Prima de Seguro
D2: Proceso de Cálculo de la Prima de Seguros
B7: 1) Datos esenciales del préstamo | G7: 3) Calculo del valor presente del Seguro
B9: Producto | D9: ='Vista Principal'!C9 -> Persona Natural | G9: Suma de Prima Mensual | H9: =SUM(L36:L395) -> 5276.982
B10: Tipo de Seguro | D10: ='Vista Principal'!C10 -> Seguro de Desgravamen con Devolución | G10: VPN - Valor Presente | H10: =NPV(D16,L36:L395) -> 5078.299811
B11: Tarifa | D11: ='Vista Principal'!C11 -> TARIFA TITULAR
B12: Monto inicial | D12: ='Vista Principal'!C12 -> 100000 | G12: 4) Calculo del Monto Adicional del Seguro y MAF
B13: =D10 -> Seguro de Desgravamen con Devolución | C13: =+CONCATENATE(D11,D9,D10) -> TARIFA TITULARPersona NaturalSeguro de Desgravamen con Devolución | D13: =VLOOKUP(C13,CAPUCCINOVEN,2,0) -> 0.0026
B14: Monto adicional Seguro de Desgravamen/ Vida | G14: Monto inicial | H14: =D12 -> 100000
B15: MAF Inicial | D15: =D12+D14 -> 100000 | G15: Monto adicional de Desgravamen / Vida | H15: =H10 -> 5078.299811
B16: Costo Capital | D16: =INDEX(_xlfn._xlws.FILTER(Tabla2[],Tabla2[TARIFA]=D11),0,2) -> 0.002871 | G16: Prima de Seguro de Desgravamen / Vida | H16: =H15/H14 -> 0.05078299811
B17: Moneda | D17: ='Vista Principal'!C19 -> Soles | G17: MAF Inicial | H17: =H14+H15 -> 105078.2998
B18: Plazo Remanente Meses | D18: ='Vista Principal'!C20 -> 36
B19: Fecha de Desembolso | D19: ='Vista Principal'!C21 -> 2022-08-12
B20: Fecha de 1er Pago | D20: ='Vista Principal'!C22 -> 2022-09-02
B21: Cuota Julio | D21: ='Vista Principal'!C23 -> 1
B22: Cuota Diciembre | D22: ='Vista Principal'!C24 -> 1
B23: TEA | D23: ='Vista Principal'!C25 -> 0.2
B24: TEA TOTAL | D24: =(1+(((1+D23)^(30/360)-1)+D13))^12-1 -> 0.237399283
B25: Monto del Bien | D25: 0
B26: Seguro del Bien | D26: 0
B27: Portes | D27: 0
B28: Cuota | D28: =(D15+(D26*D25+D27)*R34)/Q34 -> 3787.508872
B30: TCEA | D30: 0.2373067527
W31: =D15-W34-D14 -> -10.17
B33: 2) Creación de Cronograma de prima mensual
Q34: =SUM(Q36:Q395) -> 26.40257842 | R34: =SUM(R36:R395) -> 26.40257842 | W34: =SUM(W36:W395) -> 100010.17
B35: N° Cuota | D35: Fecha de pago | E35: Día | F35: Fecha de pago | G35: Días | H35: Dias Acumulados | I35: Saldo Inicial | J35: Amortización | K35: Interés | L35: Seguro Desgravamen | M35: Seguro del Bien | N35: Portes | O35: Cuota Constante | P35: Saldo Final | Q35: Factor Cronograma | R35: Factor Cronograma 2 | T35: Vector i,1 Cuota | U35: Vector i,2 Días Acum | V35: Vector i,3 Factor | W35: Vector i,4 Calculo VA | X35: VPN - Valor Presente | Y35: VPN - Valor Presente
B36: 1 | D36: =D20 -> 2022-09-02 | E36: =IF(B36<=$D$18,WEEKDAY(D36,2),"") -> 5 | F36: =IF(E36=7,D36+1,D36) -> 2022-09-02 | G36: =F36-D19 -> 21 | H36: =G36 -> 21 | I36: =D15 -> 100000 | J36: =IF(B36>D$18,"",O36-N36-M36-L36-K36) -> 2536.361642 | K36: =IF(B36>D$18,"",((1+D$23)^(G36/360)-1)*I36) -> 1069.21813 | L36: =IF(B36>D$18,"",((1+D$13)^(G36/30)-1)*I36) -> 181.9290999 | M36: =IF(B36>D$18,"",D$25*D$26) -> 0 | N36: =IF(B36>D$18,"",D$27) -> 0 | O36: =IF(B36>D$18,"",IF(B36=D$18,I36+K36+L36+M36+N36,IF(AND(D$21=2,MONTH(F36)=7),2*D$28,IF(AND(D$22=2,MONTH(F36)=12),2*D$28,D$28)))) -> 3787.508872 | P36: =IF(B36>D$18,"",I36-J36) -> 97463.63836 | Q36: =IFERROR(IF(AND(MONTH(F36)=7,D$21=2),2/(1+D$24)^(H36/360),IF(AND(MONTH(F36)=12,D$22=2),2/(1+D$24)^(H36/360),1/(1+D$24)^(H36/360))),"") -> 0.9876511903 | R36: =IFERROR(1/(1+D$24)^(H36/360),"") -> 0.9876511903 | T36: =IFERROR(J36+K36+L36+M36+N36,"") -> 3787.508872 | U36: =H36 -> 21 | V36: =IFERROR((1+D$30)^(U36/360),"") -> 1.012498793 | W36: =IFERROR(ROUND(T36/V36,2),"") -> 3740.75 | X36: =L36/(1+$I$9) -> 181.9290999 | Y36: =L36/(1+$Q$28) -> 181.9290999
B37: 2 | D37: =IF(B37>$D$18,"",EDATE(D36,1)) -> 2022-10-02 | E37: 7 | F37: =IF(E37=7,D37+1,D37) -> 2022-10-03 | G37: =IF(B37>D$18,"",F37-F36) -> 31 | H37: =IFERROR(G37+H36,"") -> 52 | I37: =IF(B37>D$18,"",P36) -> 97463.63836 | J37: 1983.399817 | K37: 1542.245409 | L37: =IF(B37>D$18,"",((1+D$13)^(G37/30)-1)*I37) -> 261.8636458 | M37: 0 | N37: 0 | O37: 3787.508872 | P37: 95480.23854 | Q37: 0.9697001542 | R37: 0.9697001542 | T37: 3787.508872 | U37: 52 | V37: 1.031235474 | W37: 3672.79 | X37: =IF(O37="",0,L37/((1+$I$9)^B37)) -> 261.8636458 | Y37: =IF(O37="",0,L37/((1+$Q$28)^B37)) -> 261.8636458
B38: 3 | D38: 2022-11-02 | E38: 3 | F38: 2022-11-02 | G38: 30 | H38: 82 | I38: 95480.23854 | J38: 2077.508357 | K38: 1461.751895 | L38: 248.2486202 | M38: 0 | N38: 0 | O38: 3787.508872 | P38: 93402.73018 | Q38: 0.952638896 | R38: 0.952638896 | T38: 3787.508872 | U38: 82 | V38: 1.049697814 | W38: 3608.19 | X38: 248.2486202 | Y38: 248.2486202
B39: 4 | D39: 2022-12-02 | E39: 5 | F39: 2022-12-02 | G39: 30 | H39: 112 | I39: 93402.73018 | J39: 2114.715432 | K39: 1429.946342 | L39: 242.8470985 | M39: 0 | N39: 0 | O39: 3787.508872 | P39: 91288.01475 | Q39: 0.9358778198 | R39: 0.9358778198 | T39: 3787.508872 | U39: 112 | V39: 1.068490688 | W39: 3544.73 | X39: 242.8470985 | Y39: 242.8470985
B40: 5 | D40: 2023-01-02 | E40: 1 | F40: 2023-01-02 | G40: 31 | H40: 143 | I40: 91288.01475 | J40: 2097.714229 | K40: 1444.523558 | L40: 245.2710854 | M40: 0 | N40: 0 | O40: 3787.508872 | P40: 89190.30052 | Q40: 0.9188677895 | R40: 0.9188677895 | T40: 3787.508872 | U40: 143 | V40: 1.088263521 | W40: 3480.32 | X40: 245.2710854 | Y40: 245.2710854
B41: 6 | D41: 2023-02-02 | E41: 4 | F41: 2023-02-02 | G41: 31 | H41: 174 | I41: 89190.30052 | J41: 2136.544148 | K41: 1411.329742 | L41: 239.6349825 | M41: 0 | N41: 0 | O41: 3787.508872 | P41: 87053.75638 | Q41: 0.9021669248 | R41: 0.9021669248 | T41: 3787.508872 | U41: 174 | V41: 1.108402258 | W41: 3417.09 | X41: 239.6349825 | Y41: 239.6349825
B42: 7 | D42: 2023-03-02 | E42: 4 | F42: 2023-03-02 | G42: 28 | H42: 202 | I42: 87053.75638 | J42: 2333.010946 | K42: 1243.265769 | L42: 211.2321573 | M42: 0 | N42: 0 | O42: 3787.508872 | P42: 84720.74543 | Q42: 0.887343331 | R42: 0.887343331 | T42: 3787.508872 | U42: 202 | V42: 1.126912217 | W42: 3360.96 | X42: 211.2321573 | Y42: 211.2321573
B43: 8 | D43: 2023-04-02 | E43: 7 | F43: 2023-04-03 | G43: 32 | H43: 234 | I43: 84720.74543 | J43: 2168.328572 | K43: 1384.201086 | L43: 234.979214 | M43: 0 | N43: 0 | O43: 3787.508872 | P43: 82552.41686 | Q43: 0.8707000932 | R43: 0.8707000932 | T43: 3787.508872 | U43: 234 | V43: 1.148445258 | W43: 3297.94 | X43: 234.979214 | Y43: 234.979214
B44: 9 | D44: 2023-05-02 | E44: 2 | F44: 2023-05-02 | G44: 29 | H44: 263 | I44: 82552.41686 | J44: 2358.640213 | K44: 1221.395901 | L44: 207.4727582 | M44: 0 | N44: 0 | O44: 3787.508872 | P44: 80193.77664 | Q44: 0.8558869563 | R44: 0.8558869563 | T44: 3787.508872 | U44: 263 | V44: 1.168314767 | W44: 3241.86 | X44: 207.4727582 | Y44: 207.4727582
B45: 10 | D45: 2023-06-02 | E45: 5 | F45: 2023-06-02 | G45: 31 | H45: 294 | I45: 80193.77664 | J45: 2303.075077 | K45: 1268.97052 | L45: 215.4632751 | M45: 0 | N45: 0 | O45: 3787.508872 | P45: 77890.70157 | Q45: 0.8403307986 | R45: 0.8403307986 | T45: 3787.508872 | U45: 294 | V45: 1.189934883 | W45: 3182.95 | X45: 215.4632751 | Y45: 215.4632751
B46: 11 | D46: 2023-07-02 | E46: 7 | F46: 2023-07-03 | G46: 31 | H46: 325 | I46: 77890.70157 | J46: 2345.706346 | K46: 1232.527114 | L46: 209.2754122 | M46: 0 | N46: 0 | O46: 3787.508872 | P46: 75544.99522 | Q46: 0.8250573815 | R46: 0.8250573815 | T46: 3787.508872 | U46: 325 | V46: 1.211955088 | W46: 3125.12 | X46: 209.2754122 | Y46: 209.2754122
B47: 12 | D47: 2023-08-02 | E47: 3 | F47: 2023-08-02 | G47: 30 | H47: 355 | I47: 75544.99522 | J47: 2434.538009 | K47: 1156.553876 | L47: 196.4169876 | M47: 0 | N47: 0 | O47: 3787.508872 | P47: 73110.45721 | Q47: 0.810541021 | R47: 0.810541021 | T47: 3787.508872 | U47: 355 | V47: 1.233652875 | W47: 3070.16 | X47: 196.4169876 | Y47: 196.4169876
B48: 13 | D48: 2023-09-02 | E48: 6 | F48: 2023-09-02 | G48: 31 | H48: 386 | I48: =IF(B48>D$18,"",P47) -> 73110.45721 | J48: =IF(B48>D$18,"",O48-N48-M48-L48-K48) -> 2434.19147 | K48: =IF(B48>D$18,"",((1+D$23)^(G48/360)-1)*I48) -> 1156.885469 | L48: 196.4319329 | M48: 0 | N48: 0 | O48: 3787.508872 | P48: =IF(B48>D$18,"",I48-J48) -> 70676.26574 | Q48: 0.7958090475 | R48: 0.7958090475 | T48: =IFERROR(J48+K48+L48+M48+N48,"") -> 3787.508872 | U48: 386 | V48: 1.256482098 | W48: 3014.38 | X48: 196.4319329 | Y48: =IF(O48="",0,L48/((1+$Q$28)^B48)) -> 196.4319329
B49: 14 | D49: 2023-10-02 | E49: 1 | F49: 2023-10-02 | G49: 30 | H49: 416 | I49: 70676.26574 | J49: 2521.734376 | K49: 1082.016205 | L49: 183.7582909 | M49: 0 | N49: 0 | O49: 3787.508872 | P49: 68154.53137 | Q49: 0.7818072928 | R49: 0.7818072928 | T49: 3787.508872 | U49: 416 | V49: 1.278977057 | W49: 2961.36 | X49: 183.7582909 | Y49: 183.7582909
B50: 15 | D50: 2023-11-02 | E50: 4 | F50: 2023-11-02 | G50: 31 | H50: 447 | I50: 68154.53137 | J50: 2525.928561 | K50: 1078.463875 | L50: 183.1164357 | M50: 0 | N50: 0 | O50: 3787.508872 | P50: 65628.6028 | Q50: 0.7675975686 | R50: 0.7675975686 | T50: 3787.508872 | U50: 447 | V50: 1.302645022 | W50: 2907.55 | X50: 183.1164357 | Y50: 183.1164357
B51: 16 | D51: 2023-12-02 | E51: 6 | F51: 2023-12-02 | G51: 30 | H51: 477 | I51: 65628.6028 | J51: 2612.135346 | K51: 1004.739159 | L51: 170.6343673 | M51: 0 | N51: 0 | O51: 3787.508872 | P51: 63016.46746 | Q51: 0.754092177 | R51: 0.754092177 | T51: 3787.508872 | U51: 477 | V51: 1.325966441 | W51: 2856.41 | X51: 170.6343673 | Y51: 170.6343673
B52: 17 | D52: 2024-01-02 | E52: 2 | F52: 2024-01-02 | G52: 31 | H52: 508 | I52: 63016.46746 | J52: 2621.037135 | K52: 997.1601644 | L52: 169.3115729 | M52: 0 | N52: 0 | O52: 3787.508872 | P52: 60395.43032 | Q52: 0.7403861884 | R52: 0.7403861884 | T52: 3787.508872 | U52: 508 | V52: 1.350503963 | W52: 2804.52 | X52: 169.3115729 | Y52: 169.3115729
B53: 18 | D53: 2024-02-02 | E53: 5 | F53: 2024-02-02 | G53: 31 | H53: 539 | I53: 60395.43032 | J53: 2669.554068 | K53: 955.6853892 | L53: 162.269415 | M53: 0 | N53: 0 | O53: 3787.508872 | P53: 57725.87625 | Q53: 0.7269293128 | R53: 0.7269293128 | T53: 3787.508872 | U53: 539 | V53: 1.375495561 | W53: 2753.56 | X53: 162.269415 | Y53: 162.269415
B54: 19 | D54: 2024-03-02 | E54: 6 | F54: 2024-03-02 | G54: 29 | H54: 568 | I54: 57725.87625 | J54: 2788.353444 | K54: 854.0773403 | L54: 145.0780876 | M54: 0 | N54: 0 | O54: 3787.508872 | P54: 54937.52281 | Q54: 0.7145621343 | R54: 0.7145621343 | T54: 3787.508872 | U54: 568 | V54: 1.399293317 | W54: 2706.73 | X54: 145.0780876 | Y54: 145.0780876
B55: 20 | D55: 2024-04-02 | E55: 2 | F55: 2024-04-02 | G55: 31 | H55: 599 | I55: 54937.52281 | J55: 2770.583134 | K55: 869.3205361 | L55: 147.6052019 | M55: 0 | N55: 0 | O55: 3787.508872 | P55: 52166.93968 | Q55: 0.7015746233 | R55: 0.7015746233 | T55: 3787.508872 | U55: 599 | V55: 1.425187781 | W55: 2657.55 | X55: 147.6052019 | Y55: 147.6052019
B56: 21 | D56: 2024-05-02 | E56: 4 | F56: 2024-05-02 | G56: 30 | H56: 629 | I56: 52166.93968 | J56: 2853.226605 | K56: 798.648224 | L56: 135.6340432 | M56: 0 | N56: 0 | O56: 3787.508872 | P56: 49313.71307 | Q56: 0.6892308635 | R56: 0.6892308635 | T56: 3787.508872 | U56: 629 | V56: 1.450703099 | W56: 2610.81 | X56: 135.6340432 | Y56: 135.6340432
B57: 22 | D57: 2024-06-02 | E57: 7 | F57: 2024-06-03 | G57: 32 | H57: 661 | I57: 49313.71307 | J57: 2845.026694 | K57: 805.706971 | L57: 136.7752075 | M57: 0 | N57: 0 | O57: 3787.508872 | P57: 46468.68638 | Q57: 0.6763034737 | R57: 0.6763034737 | T57: 3787.508872 | U57: 661 | V57: 1.478423137 | W57: 2561.86 | X57: 136.7752075 | Y57: 136.7752075
B58: 23 | D58: 2024-07-02 | E58: 2 | F58: 2024-07-02 | G58: 29 | H58: 690 | I58: 46468.68638 | J58: 2983.1999 | K58: 687.5227306 | L58: 116.786242 | M58: 0 | N58: 0 | O58: 3787.508872 | P58: 43485.48648 | Q58: 0.6647975877 | R58: 0.6647975877 | T58: 3787.508872 | U58: 690 | V58: 1.504001667 | W58: 2518.29 | X58: 116.786242 | Y58: 116.786242
B59: 24 | D59: 2024-08-02 | E59: 5 | F59: 2024-08-02 | G59: 31 | H59: 721 | I59: 43485.48648 | J59: 2982.567037 | K59: 688.1057697 | L59: 116.8360654 | M59: 0 | N59: 0 | O59: 3787.508872 | P59: 40502.91944 | Q59: 0.6527145713 | R59: 0.6527145713 | T59: 3787.508872 | U59: 721 | V59: 1.531833799 | W59: 2472.53 | X59: 116.8360654 | Y59: 116.8360654
B60: 25 | D60: 2024-09-02 | E60: 1 | F60: 2024-09-02 | G60: 31 | H60: 752 | I60: 40502.91944 | J60: 3037.776101 | K60: 640.9102166 | L60: 108.8225551 | M60: 0 | N60: 0 | O60: 3787.508872 | P60: 37465.14334 | Q60: 0.6408511695 | R60: 0.6408511695 | T60: 3787.508872 | U60: 752 | V60: 1.560180976 | W60: 2427.61 | X60: 108.8225551 | Y60: 108.8225551
B61: 26 | D61: 2024-10-02 | E61: 3 | F61: 2024-10-02 | G61: 30 | H61: 782 | I61: 37465.14334 | J61: 3116.527993 | K61: 573.5715067 | L61: 97.40937268 | M61: 0 | N61: 0 | O61: 3787.508872 | P61: 34348.61535 | Q61: 0.6295758003 | R61: 0.6295758003 | T61: 3787.508872 | U61: 782 | V61: 1.588113095 | W61: 2384.91 | X61: 97.40937268 | Y61: 97.40937268
B62: 27 | D62: 2024-11-02 | E62: 6 | F62: 2024-11-02 | G62: 31 | H62: 813 | I62: 34348.61535 | J62: 3151.695876 | K62: 543.5257212 | L62: 92.28727549 | M62: 0 | N62: 0 | O62: 3787.508872 | P62: 31196.91947 | Q62: 0.6181329569 | R62: 0.6181329569 | T62: 3787.508872 | U62: 813 | V62: 1.617501741 | W62: 2341.58 | X62: 92.28727549 | Y62: 92.28727549
B63: 28 | D63: 2024-12-02 | E63: 1 | F63: 2024-12-02 | G63: 30 | H63: 843 | I63: 31196.91947 | J63: 3228.788563 | K63: 477.6083183 | L63: 81.11199062 | M63: 0 | N63: 0 | O63: 3787.508872 | P63: 27968.13091 | Q63: 0.6072573002 | R63: 0.6072573002 | T63: 3787.508872 | U63: 843 | V63: 1.646460081 | W63: 2300.4 | X63: 81.11199062 | Y63: 81.11199062
B64: 29 | D64: 2025-01-02 | E64: 4 | F64: 2025-01-02 | G64: 31 | H64: 874 | I64: 27968.13091 | J64: 3269.802381 | K64: 442.5621927 | L64: 75.14429842 | M64: 0 | N64: 0 | O64: 3787.508872 | P64: 24698.32853 | Q64: 0.5962201062 | R64: 0.5962201062 | T64: 3787.508872 | U64: 874 | V64: 1.676928461 | W64: 2258.6 | X64: 75.14429842 | Y64: 75.14429842
B65: 30 | D65: 2025-02-02 | E65: 7 | F65: 2025-02-03 | G65: 32 | H65: 906 | I65: 24698.32853 | J65: 3315.475172 | K65: 403.5310713 | L65: 68.50262936 | M65: 0 | N65: 0 | O65: 3787.508872 | P65: 21382.85335 | Q65: 0.5850372498 | R65: 0.5850372498 | T65: 3787.508872 | U65: 906 | V65: 1.708971214 | W65: 2216.25 | X65: 68.50262936 | Y65: 68.50262936
B66: 31 | D66: 2025-03-02 | E66: 7 | F66: 2025-03-03 | G66: 28 | H66: 934 | I66: 21382.85335 | J66: 3430.243234 | K66: 305.381074 | L66: 51.88456457 | M66: 0 | N66: 0 | O66: 3787.508872 | P66: 17952.61012 | Q66: 0.575424445 | R66: 0.575424445 | T66: 3787.508872 | U66: 934 | V66: 1.73751048 | W66: 2179.85 | X66: 51.88456457 | Y66: 51.88456457
B67: 32 | D67: 2025-04-02 | E67: 3 | F67: 2025-04-02 | G67: 30 | H67: 964 | I67: 17952.61012 | J67: 3465.987131 | K67: 274.844955 | L67: 46.67678631 | M67: 0 | N67: 0 | O67: 3787.508872 | P67: 14486.62299 | Q67: 0.5653002175 | R67: 0.5653002175 | T67: 3787.508872 | U67: 964 | V67: 1.768617352 | W67: 2141.51 | X67: 46.67678631 | Y67: 46.67678631
B68: 33 | D68: 2025-05-02 | E68: 5 | F68: 2025-05-02 | G68: 30 | H68: 994 | I68: 14486.62299 | J68: 3528.061125 | K68: 221.7825273 | L68: 37.66521977 | M68: 0 | N68: 0 | O68: 3787.508872 | P68: 10958.56186 | Q68: 0.5553541193 | R68: 0.5553541193 | T68: 3787.508872 | U68: 994 | V68: 1.800281133 | W68: 2103.84 | X68: 37.66521977 | Y68: 37.66521977
B69: 34 | D69: 2025-06-02 | E69: 1 | F69: 2025-06-02 | G69: 31 | H69: 1025 | I69: 10958.56186 | J69: 3584.659471 | K69: 173.4061237 | L69: 29.44327763 | M69: 0 | N69: 0 | O69: 3787.508872 | P69: 7373.902393 | Q69: 0.5452602906 | R69: 0.5452602906 | T69: 3787.508872 | U69: 1025 | V69: 1.833596031 | W69: 2065.62 | X69: 29.44327763 | Y69: 29.44327763
B70: 35 | D70: 2025-07-02 | E70: 3 | F70: 2025-07-02 | G70: 30 | H70: 1055 | I70: 7373.902393 | J70: 3655.446185 | K70: 112.8905411 | L70: 19.17214622 | M70: 0 | N70: 0 | O70: 3787.508872 | P70: 3718.456208 | Q70: 0.5356667822 | R70: 0.5356667822 | T70: 3787.508872 | U70: 1055 | V70: 1.866423134 | W70: 2029.29 | X70: 19.17214622 | Y70: 19.17214622
B71: 36 | D71: 2025-08-02 | E71: 6 | F71: 2025-08-02 | G71: 31 | H71: 1086 | I71: 3718.456208 | J71: 3718.456208 | K71: 58.84011835 | L71: 9.990684894 | M71: 0 | N71: 0 | O71: 3787.287011 | P71: 0 | Q71: 0.5259307804 | R71: 0.5259307804 | T71: 3787.287011 | U71: 1086 | V71: 1.900962016 | W71: 1992.3 | X71: 9.990684894 | Y71: 9.990684894
B72: 37 | X72: 0 | Y72: 0
B73: 38 | X73: 0 | Y73: 0
B74: 39 | X74: 0 | Y74: 0
B75: 40 | X75: 0 | Y75: 0
B76: 41 | X76: 0 | Y76: 0
B77: 42 | X77: 0 | Y77: 0
B78: 43 | X78: 0 | Y78: 0
B79: 44 | X79: 0 | Y79: 0
B80: 45 | X80: 0 | Y80: 0
B81: 46 | X81: 0 | Y81: 0
B82: 47 | X82: 0 | Y82: 0
B83: 48 | X83: 0 | Y83: 0
B84: 49 | X84: 0 | Y84: 0
B85: 50 | X85: 0 | Y85: 0
B86: 51 | X86: 0 | Y86: 0
B87: 52 | X87: 0 | Y87: 0
B88: 53 | X88: 0 | Y88: 0
B89: 54 | X89: 0 | Y89: 0
B90: 55 | X90: 0 | Y90: 0
B91: 56 | X91: 0 | Y91: 0
B92: 57 | X92: 0 | Y92: 0
B93: 58 | X93: 0 | Y93: 0
B94: 59 | X94: 0 | Y94: 0
B95: 60 | X95: 0 | Y95: 0
B96: 61 | X96: 0 | Y96: 0
B97: 62 | X97: 0 | Y97: 0
B98: 63 | X98: 0 | Y98: 0
B99: 64 | X99: 0 | Y99: 0
B100: 65 | E100: =IF(B100<=$D$18,WEEKDAY(D100,2),"") ->  | J100: =IF(B100>D$18,"",O100-N100-M100-L100-K100) ->  | K100: =IF(B100>D$18,"",((1+D$23)^(G100/360)-1)*I100) ->  | M100: =IF(B100>D$18,"",D$25*D$26) ->  | N100: =IF(B100>D$18,"",D$27) ->  | O100: =IF(B100>D$18,"",IF(B100=D$18,I100+K100+L100+M100+N100,IF(AND(D$21=2,MONTH(F100)=7),2*D$28,IF(AND(D$22=2,MONTH(F100)=12),2*D$28,D$28)))) ->  | P100: =IF(B100>D$18,"",I100-J100) ->  | Q100: =IFERROR(IF(AND(MONTH(F100)=7,D$21=2),2/(1+D$24)^(H100/360),IF(AND(MONTH(F100)=12,D$22=2),2/(1+D$24)^(H100/360),1/(1+D$24)^(H100/360))),"") ->  | R100: =IFERROR(1/(1+D$24)^(H100/360),"") ->  | U100: =H100 ->  | V100: =IFERROR((1+D$30)^(U100/360),"") ->  | W100: =IFERROR(ROUND(T100/V100,2),"") ->  | X100: 0 | Y100: 0
B101: 66 | D101: =IF(B101>$D$18,"",EDATE(D100,1)) ->  | F101: =IF(E101=7,D101+1,D101) ->  | G101: =IF(B101>D$18,"",F101-F100) ->  | H101: =IFERROR(G101+H100,"") ->  | I101: =IF(B101>D$18,"",P100) ->  | L101: =IF(B101>D$18,"",((1+D$13)^(G101/30)-1)*I101) ->  | T101: =IFERROR(J101+K101+L101+M101+N101,"") ->  | X101: =IF(O101="",0,L101/((1+$I$9)^B101)) -> 0 | Y101: 0
B102: 67 | X102: 0 | Y102: =IF(O102="",0,L102/((1+$Q$28)^B102)) -> 0
B103: 68 | X103: 0 | Y103: 0
B104: 69 | X104: 0 | Y104: 0
B105: 70 | X105: 0 | Y105: 0
B106: 71 | X106: 0 | Y106: 0
B107: 72 | X107: 0 | Y107: 0
B108: 73 | X108: 0 | Y108: 0
B109: 74 | X109: 0 | Y109: 0
B110: 75 | X110: 0 | Y110: 0
B111: 76 | X111: 0 | Y111: 0
B112: 77 | X112: 0 | Y112: 0
B113: 78 | X113: 0 | Y113: 0
B114: 79 | X114: 0 | Y114: 0
B115: 80 | X115: 0 | Y115: 0
B116: 81 | X116: 0 | Y116: 0
B117: 82 | X117: 0 | Y117: 0
B118: 83 | X118: 0 | Y118: 0
B119: 84 | X119: 0 | Y119: 0
B120: 85 | X120: 0 | Y120: 0
B121: 86 | X121: 0 | Y121: 0
B122: 87 | X122: 0 | Y122: 0
B123: 88 | X123: 0 | Y123: 0
B124: 89 | X124: 0 | Y124: 0
B125: 90 | X125: 0 | Y125: 0
B126: 91 | X126: 0 | Y126: 0
B127: 92 | X127: 0 | Y127: 0
B128: 93 | X128: 0 | Y128: 0
B129: 94 | X129: 0 | Y129: 0
B130: 95 | X130: 0 | Y130: 0
B131: 96 | X131: 0 | Y131: 0
B132: 97 | X132: 0 | Y132: 0
B133: 98 | X133: 0 | Y133: 0
B134: 99 | X134: 0 | Y134: 0
B135: 100 | X135: 0 | Y135: 0
B136: 101 | X136: 0 | Y136: 0
B137: 102 | X137: 0 | Y137: 0
B138: 103 | X138: 0 | Y138: 0
B139: 104 | X139: 0 | Y139: 0
B140: 105 | X140: 0 | Y140: 0
B141: 106 | X141: 0 | Y141: 0
B142: 107 | X142: 0 | Y142: 0
B143: 108 | X143: 0 | Y143: 0
B144: 109 | X144: 0 | Y144: 0
B145: 110 | X145: 0 | Y145: 0
B146: 111 | X146: 0 | Y146: 0
B147: 112 | X147: 0 | Y147: 0
B148: 113 | X148: 0 | Y148: 0
B149: 114 | X149: 0 | Y149: 0
B150: 115 | X150: 0 | Y150: 0
B151: 116 | X151: 0 | Y151: 0
B152: 117 | X152: 0 | Y152: 0
B153: 118 | X153: 0 | Y153: 0
B154: 119 | X154: 0 | Y154: 0
B155: 120 | X155: 0 | Y155: 0
B156: 121 | X156: 0 | Y156: 0
B157: 122 | X157: 0 | Y157: 0
B158: 123 | X158: 0 | Y158: 0
B159: 124 | X159: 0 | Y159: 0
B160: 125 | X160: 0 | Y160: 0
B161: 126 | X161: 0 | Y161: 0
B162: 127 | X162: 0 | Y162: 0
B163: 128 | X163: 0 | Y163: 0
B164: 129 | E164: =IF(B164<=$D$18,WEEKDAY(D164,2),"") ->  | J164: =IF(B164>D$18,"",O164-N164-M164-L164-K164) ->  | K164: =IF(B164>D$18,"",((1+D$23)^(G164/360)-1)*I164) ->  | M164: =IF(B164>D$18,"",D$25*D$26) ->  | N164: =IF(B164>D$18,"",D$27) ->  | O164: =IF(B164>D$18,"",IF(B164=D$18,I164+K164+L164+M164+N164,IF(AND(D$21=2,MONTH(F164)=7),2*D$28,IF(AND(D$22=2,MONTH(F164)=12),2*D$28,D$28)))) ->  | P164: =IF(B164>D$18,"",I164-J164) ->  | Q164: =IFERROR(IF(AND(MONTH(F164)=7,D$21=2),2/(1+D$24)^(H164/360),IF(AND(MONTH(F164)=12,D$22=2),2/(1+D$24)^(H164/360),1/(1+D$24)^(H164/360))),"") ->  | R164: =IFERROR(1/(1+D$24)^(H164/360),"") ->  | U164: =H164 ->  | V164: =IFERROR((1+D$30)^(U164/360),"") ->  | W164: =IFERROR(ROUND(T164/V164,2),"") ->  | X164: 0 | Y164: 0
B165: 130 | D165: =IF(B165>$D$18,"",EDATE(D164,1)) ->  | F165: =IF(E165=7,D165+1,D165) ->  | G165: =IF(B165>D$18,"",F165-F164) ->  | H165: =IFERROR(G165+H164,"") ->  | I165: =IF(B165>D$18,"",P164) ->  | L165: =IF(B165>D$18,"",((1+D$13)^(G165/30)-1)*I165) ->  | T165: =IFERROR(J165+K165+L165+M165+N165,"") ->  | X165: =IF(O165="",0,L165/((1+$I$9)^B165)) -> 0 | Y165: 0
B166: 131 | X166: 0 | Y166: =IF(O166="",0,L166/((1+$Q$28)^B166)) -> 0
B167: 132 | X167: 0 | Y167: 0
B168: 133 | X168: 0 | Y168: 0
B169: 134 | X169: 0 | Y169: 0
B170: 135 | X170: 0 | Y170: 0
B171: 136 | X171: 0 | Y171: 0
B172: 137 | X172: 0 | Y172: 0
B173: 138 | X173: 0 | Y173: 0
B174: 139 | X174: 0 | Y174: 0
B175: 140 | X175: 0 | Y175: 0
B176: 141 | X176: 0 | Y176: 0
B177: 142 | X177: 0 | Y177: 0
B178: 143 | X178: 0 | Y178: 0
B179: 144 | X179: 0 | Y179: 0
B180: 145 | X180: 0 | Y180: 0
B181: 146 | X181: 0 | Y181: 0
B182: 147 | X182: 0 | Y182: 0
B183: 148 | X183: 0 | Y183: 0
B184: 149 | X184: 0 | Y184: 0
B185: 150 | X185: 0 | Y185: 0
B186: 151 | X186: 0 | Y186: 0
B187: 152 | X187: 0 | Y187: 0
B188: 153 | X188: 0 | Y188: 0
B189: 154 | X189: 0 | Y189: 0
B190: 155 | X190: 0 | Y190: 0
B191: 156 | X191: 0 | Y191: 0
B192: 157 | X192: 0 | Y192: 0
B193: 158 | X193: 0 | Y193: 0
B194: 159 | X194: 0 | Y194: 0
B195: 160 | X195: 0 | Y195: 0
B196: 161 | X196: 0 | Y196: 0
B197: 162 | X197: 0 | Y197: 0
B198: 163 | X198: 0 | Y198: 0
B199: 164 | X199: 0 | Y199: 0
B200: 165 | X200: 0 | Y200: 0
B201: 166 | X201: 0 | Y201: 0
B202: 167 | X202: 0 | Y202: 0
B203: 168 | X203: 0 | Y203: 0
B204: 169 | X204: 0 | Y204: 0
B205: 170 | X205: 0 | Y205: 0
B206: 171 | X206: 0 | Y206: 0
B207: 172 | X207: 0 | Y207: 0
B208: 173 | X208: 0 | Y208: 0
... 187 more rows

Sheet TarifarioBD (hidden)
A1: TARIFA | B1: PRODUCTO | C1: TIPO_SEGURO | D1: Valor | E1: Columna1 | F1: Columna2 | H1: TARIFA | I1: PRODUCTO | J1: TIPO_SEGURO
A2: TARIFA TITULAR | B2: Persona Natural | C2: Seguro de Vida | D2: 0.000975 | E2: TARIFA TITULARPersona NaturalSeguro de Vida | F2: 0.000975 | H2: TARIFA TITULAR | I2: Persona Natural
A3: TARIFA TITULAR | B3: Persona Natural | C3: Seguro de Desgravamen | D3: 0.002 | E3: TARIFA TITULARPersona NaturalSeguro de Desgravamen | F3: 0.002 | H3: TARIFA TITULAR + CONYUGE | J3: Seguro de Desgravamen
A4: TARIFA TITULAR | B4: Persona Natural | C4: Seguro de Desgravamen con Devolución | D4: 0.0026 | E4: TARIFA TITULARPersona NaturalSeguro de Desgravamen con Devolución | F4: 0.0026 | J4: Seguro de Desgravamen con Devolución
A5: TARIFA TITULAR + CONYUGE | B5: Persona Natural | C5: Seguro de Vida | D5: 0.00195 | E5: TARIFA TITULAR + CONYUGEPersona NaturalSeguro de Vida | F5: 0.00195
A6: TARIFA TITULAR + CONYUGE | B6: Persona Natural | C6: Seguro de Desgravamen | D6: 0.004 | E6: TARIFA TITULAR + CONYUGEPersona NaturalSeguro de Desgravamen | F6: 0.004
A7: TARIFA TITULAR + CONYUGE | B7: Persona Natural | C7: Seguro de Desgravamen con Devolución | D7: 0.0052 | E7: TARIFA TITULAR + CONYUGEPersona NaturalSeguro de Desgravamen con Devolución | F7: 0.0052
A8: TARIFA TITULAR | B8: Persona Jurídica | C8: Seguro de Desgravamen | D8: 0.000909 | E8: TARIFA TITULARPersona JurídicaSeguro de Desgravamen | F8: 0.000909
A9: TARIFA TITULAR | B9: Persona Jurídica | C9: Seguro de Desgravamen con Devolución | D9: 0.0018 | E9: TARIFA TITULARPersona JurídicaSeguro de Desgravamen con Devolución | F9: 0.0018
A10: TARIFA TITULAR + CONYUGE | B10: Persona Jurídica | C10: Seguro de Desgravamen | D10: 0.001591 | E10: TARIFA TITULAR + CONYUGEPersona JurídicaSeguro de Desgravamen | F10: 0.001591
A11: TARIFA TITULAR + CONYUGE | B11: Persona Jurídica | C11: Seguro de Desgravamen con Devolución | D11: 0.00315 | E11: TARIFA TITULAR + CONYUGEPersona JurídicaSeguro de Desgravamen con Devolución | F11: 0.00315

Sheet CostoCapBD
A1: TARIFA | B1: CostoCapital
A2: TARIFA TITULAR | B2: 0.002871
A3: TARIFA TITULAR + CONYUGE | B3: 0.002871
